bitfinex-derivatives/quotes_ETHF0:USTF0_20240920
["timestamp","ask_amount","ask_price","bid_price","bid_amount"]
[1726839047464,0.39387,2538.8,2538.4,3.60172]
[1726839047660,1.2012,2539.1,2538.6,0.39389]
[1726839047865,1.2012,2539.1,2538.5,0.3939]
[1726839048063,1.2012,2539.1,2538.4,3.2078]
[1726839048363,0.39388,2538.7,2538.5,0.3926]
[1726839048665,0.39394,2538.3,2538.2,0.3878]
[1726839048870,3.2078,2538.5,2537.9,0.4047]
[1726839049179,0.9849,2538.2,2537.7,0.3734]
[1726839049373,0.9849,2538.2,2538.0,0.39398]
[1726839049374,3.2078,2538.2,2538.0,0.39398]
[1726839049663,3.2078,2538.2,2537.7,0.3734]
[1726839049861,3.2078,2538.2,2537.9,0.39399]
[1726839050055,0.8217,2538.4,2537.7,0.3734]
[1726839050262,1.38964,2538.1,2537.6,3.2078]
[1726839050564,3.2078,2537.9,2537.3,3.60189]
[1726839050867,0.4113,2537.8,2537.3,3.2078]
[1726839051368,0.39405,2537.6,2537.2,0.3734]
[1726839051573,0.39405,2537.6,2536.9,3.6125]
[1726839051574,3.2078,2537.4,2536.9,3.2078]
[1726839051763,0.3942,2536.7,2536.5,0.409]
[1726839052069,0.98528,2537.2,2536.1,3.9594]
[1726839052070,3.2078,2537.0,2536.1,3.9594]
[1726839052365,3.2078,2537.0,2536.2,0.409]
[1726839052366,0.39421,2536.6,2536.2,0.409]
[1726839052563,0.3942,2536.7,2536.2,0.409]
[1726839052769,0.77586,2536.9,2536.3,0.39425]
[1726839052968,0.77586,2536.9,2536.2,0.409]
[1726839052969,0.3817,2536.9,2536.2,0.80326]
[1726839053171,0.3817,2536.9,2536.3,0.39424]
[1726839053772,0.77586,2536.9,2536.3,0.39425]
[1726839054069,0.39421,2536.6,2536.2,0.409]
[1726839054258,3.2078,2536.7,2536.1,0.3779]
[1726839054460,0.39421,2536.6,2536.1,0.3779]
[1726839054869,3.602,2536.7,2536.1,0.77218]
[1726839055167,3.602,2536.7,2535.9,3.78]
[1726839055168,3.2078,2536.7,2535.9,3.78]
[1726839055366,0.39423,2536.5,2535.9,0.39431]
[1726839056065,0.3974,2536.6,2535.6,4.5826]
[1726839056259,0.39427,2536.3,2535.7,0.39433]
[1726839056460,3.60208,2536.1,2535.6,4.56795]
[1726839056671,3.2078,2536.1,2535.6,0.78795]
[1726839056856,3.60208,2536.1,2535.6,0.78795]
[1726839057064,3.2078,2536.1,2535.7,0.39434]
[1726839057370,3.60208,2536.1,2535.6,0.78795]
[1726839057862,3.60209,2536.1,2535.6,0.78795]
[1726839058261,0.3943,2536.0,2535.6,0.78795]
[1726839058456,3.2078,2536.1,2535.2,0.39441]
[1726839058660,0.98564,2536.3,2535.0,3.2078]
[1726839058661,3.2078,2535.7,2535.0,3.2078]
[1726839059060,0.39437,2535.6,2535.2,0.39441]
[1726839059263,0.77545,2535.7,2535.3,0.3944]
[1726839059469,0.3811,2535.7,2535.4,0.39439]
[1726839059665,0.79652,2535.9,2535.5,0.39437]
[1726839059871,0.79652,2535.9,2535.5,0.39436]
[1726839060170,0.3811,2536.2,2535.3,3.78]
[1726839060475,0.3811,2536.2,2535.5,3.2078]
[1726839060675,0.39429,2536.1,2535.7,0.39434]
[1726839060858,0.3811,2536.2,2535.4,0.3897]
[1726839061064,0.3811,2536.2,2535.6,6.9878]
[1726839061264,0.4022,2536.4,2535.6,7.97367]
[1726839061465,0.4022,2536.4,2536.2,0.39426]
[1726839061667,0.4022,2536.4,2535.6,6.9878]
[1726839061871,0.4022,2536.4,2536.1,0.39427]
[1726839062179,0.79644,2536.4,2536.1,0.39427]
[1726839062374,0.4022,2536.4,2536.1,0.39427]
[1726839062665,0.79644,2536.4,2536.1,0.39427]
[1726839063370,0.39425,2536.3,2535.9,3.2078]
[1726839063675,0.79644,2536.4,2535.9,3.2078]
[1726839063870,0.39425,2536.3,2535.9,3.2078]
[1726839064074,0.4022,2536.4,2535.9,3.2078]
[1726839064270,0.3943,2536.0,2535.7,0.39434]
[1726839064470,0.98571,2536.1,2535.5,3.6139]
[1726839064970,0.98575,2536.0,2535.5,3.2078]
[1726839065277,0.98579,2535.9,2535.1,3.2078]
[1726839065470,0.39437,2535.6,2535.4,0.39439]
[1726839065668,0.39435,2535.7,2535.1,3.2078]
[1726839065868,3.2078,2536.0,2535.3,3.78]
[1726839066069,0.39432,2535.9,2535.6,0.39435]
[1726839066266,0.4099,2536.1,2535.4,3.6021]
[1726839066574,0.39432,2535.9,2535.6,0.39435]
[1726839066769,0.4099,2536.1,2535.4,3.6021]
[1726839066975,0.39432,2535.9,2535.6,0.39435]
[1726839067762,0.39434,2535.8,2535.5,0.39437]
[1726839068070,0.39434,2535.8,2535.4,3.6021]
[1726839068071,0.39432,2535.9,2535.6,0.39435]
[1726839068273,0.39432,2535.9,2535.4,3.6021]
[1726839068274,0.39433,2535.8,2535.5,0.39436]
[1726839068473,1.39563,2536.1,2535.5,0.39437]
[1726839068474,0.39434,2535.7,2535.5,0.39437]
[1726839068974,1.39563,2536.1,2535.4,3.6021]
[1726839069163,0.39434,2535.8,2535.5,0.39437]
[1726839069476,0.98579,2535.9,2535.4,3.6021]
[1726839069775,0.4099,2536.1,2535.4,3.6021]
[1726839070076,0.98571,2536.1,2535.5,0.39437]
[1726839070370,0.39434,2535.8,2535.6,0.39436]
[1726839070966,0.98571,2536.1,2535.4,3.6021]
[1726839071175,0.39434,2535.8,2535.6,0.39435]
[1726839071372,0.98571,2536.1,2535.4,3.6021]
[1726839071670,3.2078,2535.9,2535.0,7.8121]
[1726839071978,0.98608,2535.2,2534.6,3.2078]
[1726839072172,0.39444,2535.1,2534.9,0.39446]
[1726839072569,0.39448,2534.9,2534.7,0.3945]
[1726839072775,0.39448,2534.9,2534.6,3.2078]
[1726839072776,0.3945,2534.7,2534.6,3.2078]
[1726839072977,0.39446,2535.0,2534.6,3.2078]
[1726839073171,3.2078,2535.2,2534.6,3.2078]
[1726839073370,0.39447,2535.0,2534.6,3.2078]
[1726839073566,3.60223,2535.2,2534.9,0.39446]
[1726839073771,1.77096,2535.5,2534.6,3.2078]
[1726839073772,0.39444,2535.1,2534.6,3.2078]
[1726839073968,3.9928,2535.5,2534.6,3.2078]
[1726839074272,3.9928,2535.5,2534.8,3.78]
[1726839074273,0.39442,2535.3,2534.8,3.78]
[1726839074468,3.9928,2535.5,2534.8,3.78]
[1726839074685,0.3881,2535.8,2535.2,3.2078]
[1726839074885,0.3943,2536.0,2535.8,0.39432]
[1726839075180,3.2078,2536.1,2535.8,0.39432]
[1726839075181,3.60209,2536.1,2535.8,0.39432]
[1726839075375,3.2078,2536.1,2535.8,0.39432]
[1726839075682,0.3943,2536.0,2535.7,0.39433]
[1726839075871,0.39431,2536.0,2535.7,0.39433]
[1726839076772,0.39431,2535.9,2535.7,0.39433]
[1726839077079,0.39432,2535.9,2535.6,0.78045]
[1726839077270,4.19351,2536.1,2535.3,0.3818]
[1726839077470,0.39437,2535.6,2535.3,0.7762]
[1726839077665,1.1636,2535.8,2535.3,0.3818]
[1726839077879,1.1636,2535.8,2535.4,0.39439]
[1726839078073,1.1636,2535.8,2535.3,0.3818]
[1726839078074,0.7835,2535.8,2535.3,0.3818]
[1726839078269,0.39433,2535.9,2535.4,3.2078]
[1726839078477,0.39431,2536.0,2535.5,0.4031]
[1726839078680,4.5017,2536.3,2535.5,0.4031]
[1726839078681,4.89596,2536.3,2536.0,0.39428]
[1726839078868,4.89596,2536.3,2536.0,0.39429]
[1726839079367,4.5017,2536.3,2535.7,3.2078]
[1726839079677,0.39425,2536.4,2535.7,3.2078]
[1726839079877,0.39425,2536.4,2536.1,0.39427]
[1726839080080,0.3942,2536.6,2536.3,0.39425]
[1726839080481,3.614,2536.7,2536.1,0.7776]
[1726839080678,0.98525,2537.3,2536.1,0.7776]
[1726839080679,0.4062,2537.2,2536.4,4.26]
[1726839080977,0.80032,2537.2,2536.8,0.39416]
[1726839081170,0.39413,2537.1,2536.7,0.39418]
[1726839081369,0.39415,2537.0,2536.8,0.3937]
[1726839081578,0.80032,2537.2,2536.8,0.3937]
[1726839081773,0.80032,2537.2,2536.8,0.78787]
[1726839081978,0.39413,2537.1,2536.8,0.78787]
[1726839082677,0.98516,2537.6,2536.8,0.78787]
[1726839082678,4.121,2537.8,2537.0,7.4678]
[1726839082985,0.3757,2538.2,2537.4,4.26]
[1726839083283,0.3757,2538.2,2537.5,0.78396]
[1726839083588,0.3757,2538.2,2537.5,0.3899]
[1726839083885,0.39398,2538.1,2537.5,0.3899]
[1726839084081,0.76966,2538.2,2537.5,0.78396]
[1726839084282,0.76966,2538.2,2537.5,0.3899]
[1726839084283,0.39398,2538.1,2537.5,0.3899]
[1726839086083,0.39399,2538.0,2537.5,0.3899]
[1726839086282,0.39401,2537.9,2537.5,0.3899]
[1726839086474,3.2078,2537.6,2536.9,3.2078]
[1726839086679,0.39409,2537.4,2536.9,3.2078]
[1726839087278,0.77306,2537.5,2536.9,3.2078]
[1726839087477,0.77306,2537.5,2536.9,3.60195]
[1726839087478,0.379,2537.5,2536.9,3.60195]
[1726839087683,0.379,2537.5,2536.9,3.2078]
[1726839087986,0.379,2537.5,2537.1,0.39411]
[1726839088190,0.379,2537.5,2536.9,3.2078]
[1726839088486,0.379,2537.5,2537.0,0.39413]
[1726839088687,0.379,2537.5,2536.9,3.2078]
[1726839089074,3.2078,2537.7,2536.9,3.2078]
[1726839089286,0.39406,2537.6,2537.1,0.39413]
[1726839089482,0.39406,2537.5,2537.0,0.39413]
[1726839089889,3.2078,2537.7,2536.9,3.60195]
[1726839090183,0.39411,2537.3,2536.9,0.39415]
[1726839090383,0.3975,2537.4,2536.7,0.7873]
[1726839090583,0.39413,2537.1,2536.7,1.18148]
[1726839090887,0.39413,2537.1,2536.7,1.18149]
[1726839091093,0.39416,2536.9,2536.7,0.4015]
[1726839091281,4.19316,2537.1,2536.5,3.2078]
[1726839091588,4.19316,2537.1,2536.2,0.4051]
[1726839091589,0.9854,2536.9,2536.3,3.2078]
[1726839091787,0.39423,2536.5,2536.1,0.39428]
[1726839091989,0.39423,2536.5,2536.1,0.39427]
[1726839092193,4.3646,2536.8,2536.0,3.2078]
[1726839092494,0.39426,2536.3,2536.0,3.2078]
[1726839092681,0.39429,2536.1,2535.9,0.4051]
[1726839092989,0.39429,2536.1,2535.3,5.716]
[1726839092990,3.2078,2536.2,2535.3,5.716]
[1726839093189,3.2078,2536.2,2535.5,0.39437]
[1726839093190,0.39431,2536.0,2535.5,0.39437]
[1726839093393,0.39434,2535.8,2535.4,0.4051]
[1726839093583,0.39437,2535.6,2535.4,3.6129]
[1726839093784,0.39438,2535.5,2535.1,0.39443]
[1726839094083,0.39438,2535.5,2535.2,3.2078]
[1726839094389,0.39437,2535.6,2535.0,0.3742]
[1726839094583,3.2078,2535.8,2535.2,3.2078]
[1726839094584,0.39435,2535.7,2535.2,3.2078]
[1726839094888,3.2078,2535.8,2535.3,0.3944]
[1726839095081,0.39433,2535.8,2535.3,0.3944]
[1726839095278,0.411,2536.0,2535.2,3.60221]
[1726839095478,0.39434,2535.8,2535.3,0.3944]
[1726839095689,0.39432,2535.9,2535.3,0.3944]
[1726839095992,0.39433,2535.8,2535.3,0.3944]
[1726839096981,0.39433,2535.8,2535.4,0.39439]
[1726839097290,0.39434,2535.8,2535.3,0.3944]
[1726839097787,0.39434,2535.8,2535.4,0.39439]
[1726839097988,0.411,2536.0,2535.4,0.39438]
[1726839098384,0.9859,2535.7,2535.1,3.2078]
[1726839098579,3.2078,2535.9,2535.1,3.2078]
[1726839098580,0.3944,2535.4,2535.1,3.2078]
[1726839099287,0.39438,2535.5,2535.1,3.60224]
[1726839099589,0.98583,2535.8,2534.7,0.39449]
[1726839099794,0.39445,2535.0,2534.7,0.39449]
[1726839099986,0.3905,2535.4,2534.7,0.39449]
[1726839100196,0.3905,2535.4,2534.8,0.39448]
[1726839100398,0.39444,2535.1,2534.7,0.39449]
[1726839100588,0.39444,2535.1,2534.4,5.0433]
[1726839100800,0.39443,2535.2,2534.8,0.39448]
[1726839101294,0.39444,2535.1,2534.6,3.2078]
[1726839101495,3.2078,2535.3,2534.6,3.2078]
[1726839101695,3.9931,2535.3,2534.7,0.39449]
[1726839101889,3.9931,2535.3,2534.6,3.2078]
[1726839102090,0.39442,2535.2,2534.9,0.39446]
[1726839102489,4.38751,2535.3,2534.9,0.39446]
[1726839102799,0.39443,2535.2,2534.9,0.39445]
[1726839103106,0.3917,2535.3,2535.1,0.39444]
[1726839103391,0.78611,2535.3,2535.0,0.39445]
[1726839103585,0.78611,2535.3,2535.1,0.39444]
[1726839103788,0.78611,2535.3,2535.0,0.39444]
[1726839103994,3.5983,2535.4,2534.7,0.98626]
[1726839104194,3.6014,2535.7,2535.0,3.2078]
[1726839104396,0.39439,2535.4,2535.2,0.39441]
[1726839104599,0.39438,2535.5,2534.9,3.2078]
[1726839104897,0.39439,2535.4,2535.1,0.39443]
[1726839105104,0.39439,2535.4,2535.2,0.39442]
[1726839105299,0.39439,2535.5,2535.2,0.39441]
[1726839105502,0.3944,2535.4,2535.2,0.39441]
[1726839106805,3.6014,2535.7,2534.9,3.2078]
[1726839107101,0.39439,2535.5,2535.2,0.39441]
[1726839107300,3.6014,2535.7,2535.2,0.39441]
[1726839107500,0.39439,2535.4,2535.2,0.39441]
[1726839107702,0.39438,2535.5,2535.0,0.3838]
[1726839107899,0.39439,2535.5,2535.0,0.3838]
[1726839108296,3.6014,2535.7,2535.0,0.3838]
[1726839108297,3.6014,2535.7,2535.3,0.3944]
[1726839108491,3.2078,2535.7,2535.2,3.2078]
[1726839108697,0.39436,2535.7,2535.5,0.39437]
[1726839108996,3.2078,2535.8,2535.7,0.39434]
[1726839109198,0.7847,2535.9,2535.8,0.39433]
[1726839109401,0.3795,2536.3,2536.0,0.39429]
[1726839109906,0.39427,2536.2,2535.6,0.3842]
[1726839110202,3.5873,2536.3,2535.7,0.98587]
[1726839110508,8.1349,2536.7,2536.1,0.39427]
[1726839110801,0.39424,2536.4,2535.8,6.9978]
[1726839110999,3.9856,2536.7,2535.9,0.98579]
[1726839111198,3.99774,2537.1,2536.7,0.39418]
[1726839111398,3.99774,2537.1,2536.4,6.9978]
[1726839111399,3.2078,2537.1,2536.4,6.9978]
[1726839111596,3.2078,2537.1,2536.7,3.79]
[1726839111796,0.3795,2537.4,2536.7,3.79]
[1726839111997,0.39411,2537.3,2536.9,0.39415]
[1726839112196,3.5873,2537.4,2536.9,0.39415]
[1726839112402,3.98139,2537.4,2536.9,0.39415]
[1726839112606,3.5873,2537.4,2536.7,6.9978]
[1726839112801,0.3795,2537.4,2537.0,0.39413]
[1726839113304,3.5873,2537.4,2537.0,0.39413]
[1726839113506,3.5873,2537.4,2536.7,6.9978]
[1726839113704,0.3941,2537.3,2536.7,6.9978]
[1726839113899,0.3941,2537.3,2536.7,3.2078]
[1726839114502,0.39411,2537.3,2536.9,0.39416]
[1726839114803,0.39412,2537.2,2536.7,3.60198]
[1726839115003,0.39412,2537.2,2536.8,0.39417]
[1726839115207,3.5873,2537.4,2536.5,4.9903]
[1726839115406,0.39411,2537.2,2536.8,0.39416]
[1726839115701,0.39413,2537.1,2536.7,0.39418]
[1726839115904,0.39413,2537.1,2536.5,4.9903]
[1726839115905,3.2078,2537.1,2536.5,4.9903]
[1726839116098,3.2078,2537.1,2536.6,0.3942]
[1726839116293,3.2078,2537.1,2536.5,4.9903]
[1726839116503,3.2078,2537.1,2536.8,0.39416]
[1726839116696,3.2078,2537.1,2536.9,0.39415]
[1726839117210,0.3941,2537.3,2536.9,0.39415]
[1726839117408,0.3795,2537.4,2536.7,3.2078]
[1726839117817,8.53063,2537.8,2536.9,0.9854]
[1726839118109,0.39404,2537.7,2537.4,0.39408]
[1726839118309,4.9288,2537.8,2537.1,4.19312]
[1726839118511,4.92702,2537.8,2537.5,0.39406]
[1726839118809,4.92702,2537.8,2537.4,0.39407]
[1726839118810,0.39404,2537.7,2537.4,0.39407]
[1726839119399,0.39404,2537.7,2537.2,0.3741]
[1726839119400,0.39406,2537.6,2537.3,0.39409]
[1726839119704,4.01382,2537.8,2537.5,0.39406]
[1726839119913,0.39404,2537.7,2537.4,0.39407]
[1726839120101,0.39405,2537.6,2537.4,0.39407]
[1726839120307,0.412,2537.8,2537.7,0.39403]
[1726839120505,0.412,2537.8,2537.2,0.3741]
[1726839120506,0.4063,2537.9,2537.2,0.3741]
[1726839120815,0.80031,2537.9,2537.6,0.39404]
[1726839121015,0.4063,2537.9,2537.8,0.39402]
[1726839121605,0.3805,2538.2,2538.0,0.39399]
[1726839121809,0.77446,2538.2,2537.9,0.394]
[1726839122014,0.77446,2538.2,2537.9,0.39399]
[1726839122216,0.39397,2538.1,2537.8,0.39401]
[1726839122414,0.39397,2538.1,2537.9,0.394]
[1726839122415,3.2078,2538.1,2537.9,0.394]
[1726839122611,4.5015,2538.3,2537.5,3.2078]
[1726839122814,4.5015,2538.3,2537.5,3.6118]
[1726839123025,4.5015,2538.3,2538.1,0.39396]
[1726839123209,4.5015,2538.3,2537.6,0.98513]
[1726839123210,0.3805,2538.3,2537.6,0.98513]
[1726839123409,0.3805,2538.3,2537.8,3.2078]
[1726839123605,0.3805,2538.3,2537.8,0.39401]
[1726839123810,0.39398,2538.1,2537.8,0.39401]
[1726839124104,0.39399,2538.1,2537.8,0.39401]
[1726839124426,3.2078,2538.1,2537.4,4.198]
[1726839124624,5.64871,2538.2,2537.2,3.9637]
[1726839124625,0.39404,2537.7,2537.2,3.9637]
[1726839124827,0.39405,2537.6,2537.4,0.39407]
[1726839125117,0.39409,2537.4,2537.2,0.76821]
[1726839125313,3.2078,2537.5,2536.9,3.60195]
[1726839125520,0.4009,2537.4,2536.9,3.2078]
[1726839125917,0.3941,2537.3,2537.1,0.39412]
[1726839126112,0.4009,2537.4,2536.9,3.2078]
[1726839126309,0.3954,2537.6,2537.4,0.39407]
[1726839126510,0.3954,2537.6,2537.0,0.98536]
[1726839126705,3.6087,2537.8,2537.7,0.39403]
[1726839126920,3.2078,2538.1,2537.4,0.98518]
[1726839127113,3.60177,2538.1,2537.9,0.394]
[1726839127316,3.2078,2538.1,2538.0,0.39399]
[1726839127512,3.2078,2538.1,2537.9,0.39399]
[1726839127814,3.2078,2538.1,2537.5,0.3782]
[1726839128023,0.39402,2537.8,2537.6,0.39404]
[1726839128228,0.39401,2537.9,2537.5,0.3782]
[1726839128518,0.39401,2537.9,2537.6,0.39404]
[1726839128721,3.60182,2537.8,2537.5,0.77225]
[1726839129025,3.60182,2537.8,2537.6,0.39404]
[1726839129322,0.39406,2537.6,2537.2,0.406]
[1726839129517,3.2078,2537.5,2537.4,0.39408]
[1726839129719,3.2078,2537.5,2537.2,0.3941]
[1726839129720,3.60187,2537.5,2537.2,0.3941]
[1726839129915,3.60187,2537.5,2536.9,3.2078]
[1726839129916,3.2078,2537.5,2536.9,3.2078]
[1726839130222,0.39415,2537.0,2536.6,3.2078]
[1726839130419,3.2078,2537.2,2536.6,3.2078]
[1726839130838,0.39414,2537.1,2536.8,0.39416]
[1726839131127,3.2078,2536.9,2536.4,0.406]
[1726839131426,4.121,2537.5,2536.4,0.406]
[1726839131427,0.7946,2537.0,2536.8,0.39416]
[1726839131620,0.7946,2537.0,2536.9,0.39416]
[1726839131924,4.121,2537.5,2537.0,0.39414]
[1726839132122,0.39409,2537.4,2537.2,0.3941]
[1726839132312,0.39407,2537.5,2537.0,0.4107]
[1726839132518,0.39408,2537.4,2537.2,0.3941]
[1726839132924,3.60187,2537.5,2537.0,0.4107]
[1726839133131,0.39408,2537.4,2537.2,0.3941]
[1726839133513,0.98515,2537.6,2537.0,0.39413]
[1726839133713,3.60189,2537.4,2537.1,0.39411]
[1726839133916,3.2078,2537.4,2536.9,3.2078]
[1726839134227,6.9978,2537.4,2537.0,0.39414]
[1726839134419,6.9978,2537.4,2536.9,3.2078]
[1726839134420,0.39413,2537.1,2536.9,3.2078]
[1726839134619,0.39413,2537.1,2536.9,3.60195]
[1726839134820,0.39413,2537.1,2536.9,3.60194]
[1726839135021,0.39413,2537.1,2536.9,3.60195]
[1726839135231,0.39409,2537.4,2537.2,0.3941]
[1726839135432,0.39409,2537.4,2536.9,3.2078]
[1726839135433,0.3941,2537.3,2537.1,0.39412]
[1726839135923,3.2078,2537.5,2536.9,3.2078]
[1726839136231,0.4125,2537.2,2537.1,0.39413]
[1726839136831,0.4125,2537.2,2536.9,3.2078]
[1726839137022,0.8207,2537.2,2536.9,3.2078]
[1726839137228,3.2078,2537.5,2536.9,3.2078]
[1726839137528,3.2078,2537.5,2537.3,0.3941]
[1726839137529,0.39407,2537.5,2537.3,0.3941]
[1726839138027,3.60186,2537.5,2537.4,0.39408]
[1726839138422,3.2078,2537.5,2537.4,0.39408]
[1726839138618,0.7933,2537.7,2537.4,0.39407]
[1726839138825,0.39406,2537.6,2537.5,0.39406]
[1726839139019,0.39406,2537.5,2537.0,0.98536]
[1726839139226,0.39408,2537.4,2536.9,4.56758]
[1726839139429,3.2078,2537.6,2536.9,3.2078]
[1726839139626,0.98517,2537.5,2537.1,0.39412]
[1726839139825,0.98517,2537.5,2537.0,0.39413]
[1726839139826,0.39413,2537.1,2537.0,0.39413]
[1726839140025,0.39414,2537.0,2536.9,3.2078]
[1726839140226,0.76704,2537.0,2536.9,3.2078]
[1726839140421,0.39416,2536.9,2536.8,0.39417]
[1726839140635,0.3729,2537.0,2536.7,0.39418]
[1726839140831,3.9923,2537.0,2536.3,3.2078]
[1726839141031,3.2078,2536.7,2536.3,3.2078]
[1726839141225,0.39432,2535.9,2535.6,0.39435]
[1726839141427,3.2078,2536.4,2535.5,3.6073]
[1726839141428,3.2078,2536.1,2535.5,3.6073]
[1726839141728,3.2078,2536.1,2535.5,3.2078]
[1726839141929,3.2078,2536.1,2535.1,0.39443]
[1726839141930,0.39438,2535.5,2535.1,0.39443]
[1726839142128,0.98579,2535.9,2535.0,4.5839]
[1726839142129,3.2078,2535.8,2535.0,0.3859]
[1726839142429,0.39436,2535.6,2535.2,0.39441]
[1726839142630,3.2078,2535.8,2535.4,0.39438]
[1726839143141,4.121,2536.0,2535.1,3.2078]
[1726839143343,4.5153,2536.0,2535.1,3.2078]
[1726839143528,4.121,2536.0,2535.3,3.79]
[1726839143732,4.5153,2536.0,2535.6,0.39435]
[1726839144033,4.39317,2536.2,2535.8,0.39433]
[1726839144435,3.9989,2536.2,2535.8,0.39433]
[1726839144732,3.9989,2536.2,2535.4,3.5869]
[1726839144733,3.9989,2536.2,2535.6,3.79]
[1726839144937,1.18538,2536.2,2535.7,0.39433]
[1726839145236,0.39431,2535.9,2535.5,0.39437]
[1726839145537,0.39431,2535.9,2535.1,3.2078]
[1726839145538,0.39435,2535.7,2535.1,3.2078]
[1726839145739,3.2078,2535.6,2534.8,3.5869]
[1726839145937,0.39443,2535.2,2534.8,3.98137]
[1726839146136,3.6171,2535.6,2534.8,3.5869]
[1726839146137,0.7991,2535.5,2534.8,3.5869]
[1726839146630,3.6171,2535.6,2535.2,0.39441]
[1726839146827,4.01147,2535.6,2535.2,0.39441]
[1726839147228,3.60218,2535.5,2535.1,0.39443]
[1726839147424,3.2078,2535.5,2534.8,3.5869]
[1726839147735,0.39443,2535.2,2534.8,3.60228]
[1726839147934,0.98598,2535.4,2534.8,3.2078]
[1726839148435,3.2078,2535.2,2534.4,0.3816]
[1726839148623,3.2078,2535.2,2534.0,3.2078]
[1726839148624,0.39455,2534.4,2534.0,3.2078]
[1726839148831,3.2078,2534.5,2533.9,3.2078]
[1726839149028,0.39459,2534.2,2533.9,3.2078]
[1726839149230,0.39459,2534.1,2533.6,0.39467]
[1726839149435,3.60238,2534.2,2533.7,0.39465]
[1726839149628,3.2078,2534.2,2533.6,3.2078]
[1726839150044,3.60238,2534.2,2533.6,3.60246]
[1726839150342,3.2078,2534.2,2533.6,3.2078]
[1726839150539,3.2078,2533.9,2533.3,3.2078]
[1726839150844,3.2078,2533.6,2532.8,0.4052]
[1726839151138,3.2078,2533.3,2532.4,3.2078]
[1726839151434,0.39479,2532.9,2532.4,3.2078]
[1726839151636,3.2078,2533.0,2532.1,4.38789]
[1726839151845,1.36694,2533.5,2531.5,3.60279]
[1726839151846,0.39488,2532.3,2531.5,3.60279]
[1726839152033,3.60268,2532.3,2531.5,3.60278]
[1726839152237,3.2078,2532.3,2531.5,3.2078]
[1726839152434,3.2078,2532.3,2531.2,0.3928]
[1726839152738,1.39306,2532.9,2531.5,3.2078]
[1726839152739,3.2078,2532.6,2531.5,3.2078]
[1726839152935,3.2078,2532.6,2531.8,7.4678]
[1726839153127,3.2078,2532.6,2532.1,3.2078]
[1726839153329,3.2078,2532.6,2532.1,0.3949]
[1726839153530,3.2078,2532.6,2531.9,3.2078]
[1726839153731,3.2078,2532.7,2531.9,3.2078]
[1726839153933,3.2078,2532.6,2531.9,3.2078]
[1726839154135,0.4061,2532.9,2532.4,0.39485]
[1726839155243,3.2078,2533.0,2532.5,0.39483]
[1726839155433,3.2078,2533.0,2532.6,0.39483]
[1726839155742,3.2078,2533.3,2532.2,7.4678]
[1726839156043,3.2078,2533.3,2532.7,0.3948]
[1726839156247,3.2078,2533.3,2532.5,3.2078]
[1726839156538,3.2078,2533.3,2532.5,7.4678]
[1726839156744,3.2078,2533.3,2532.5,3.2078]
[1726839157240,3.2078,2533.3,2533.0,0.39476]
[1726839157548,3.2078,2533.3,2532.5,3.2078]
[1726839157838,3.2078,2534.0,2533.2,4.26]
[1726839158142,4.714,2534.6,2533.1,3.2078]
[1726839158143,3.2078,2534.1,2533.1,3.2078]
[1726839158338,3.2078,2533.7,2533.1,3.2078]
[1726839158636,0.39468,2533.6,2533.1,3.2078]
[1726839158950,0.3889,2533.6,2533.1,3.2078]
[1726839159237,0.39469,2533.5,2533.0,0.39476]
[1726839159540,3.60251,2533.4,2532.9,0.39477]
[1726839159741,0.39472,2533.3,2532.8,0.39479]
[1726839159939,3.2078,2533.4,2532.7,3.2078]
[1726839160135,3.60256,2533.1,2532.7,3.2078]
[1726839160340,3.5967,2533.6,2532.7,3.2078]
[1726839160642,3.5967,2533.6,2533.2,0.39472]
[1726839160940,3.5967,2533.6,2533.0,0.39476]
[1726839161137,3.5967,2533.6,2533.1,0.39474]
[1726839161340,0.3889,2533.6,2532.7,3.2078]
[1726839161639,3.2078,2533.5,2532.9,0.39477]
[1726839161841,3.2078,2533.2,2532.9,0.39477]
[1726839162036,0.3889,2533.6,2532.7,3.2078]
[1726839162037,0.39476,2533.1,2532.7,3.60261]
[1726839162440,3.2078,2533.3,2532.7,3.2078]
[1726839162647,3.60252,2533.3,2532.7,3.2078]
[1726839163037,3.5967,2533.6,2533.1,0.39474]
[1726839163339,0.39471,2533.4,2533.0,0.39476]
[1726839163541,0.39471,2533.4,2533.1,0.39475]
[1726839163839,0.39469,2533.5,2533.1,0.39474]
[1726839164032,0.39469,2533.5,2533.2,0.39473]
[1726839164237,0.3947,2533.4,2533.1,0.39474]
[1726839164436,0.39469,2533.5,2533.2,0.39473]
[1726839164735,3.5967,2533.6,2532.7,3.2078]
[1726839164935,0.39475,2533.1,2532.8,0.39479]
[1726839165133,0.39474,2533.2,2532.9,0.39477]
[1726839165347,0.39474,2533.2,2532.7,3.2078]
[1726839165348,3.5967,2533.6,2532.7,3.2078]
[1726839165541,0.39472,2533.3,2533.1,0.39475]
[1726839165848,3.5967,2533.6,2532.7,3.2078]
[1726839166148,3.5967,2533.6,2533.2,0.39472]
[1726839166149,0.39469,2533.5,2533.2,0.39472]
[1726839166342,0.39469,2533.5,2533.2,0.39473]
[1726839166749,0.39469,2533.5,2533.3,0.39472]
[1726839166945,0.39469,2533.5,2533.3,0.39471]